Cogmind - Beta 12 X2 @@@ ROGUE MODE // 2022.09.17 @ 10:14:54 Player: Momo Result: Destroyed by as-85972 with Assembled Blade Performance ------------- Evolutions (0) 0 Regions Visited (2) 400 Robots Destroyed (9) 45 Value Destroyed (171) 171 Prototype IDs (0) 0 Alien Tech Used (0) 0 Bonus (0) 0 TOTAL SCORE: 616 Bonus ------- None Cogmind --------- Core Integrity 0/250 Matter 294/300 Energy 83/100 System Corruption 3% Temperature Cool (0) Movement Core (50) Location -10/Mines Parts ------- > --- POWER (1) -------- (None) > --- PROPULSION (2) --- (None) > --- UTILITY (2) ------ Structural Scanner > --- WEAPON (2) ------- (None) > --- INVENTORY (5) ---- Improved Aluminum Leg Large Storage Unit Large Matter Pod (0) Weight Redist. System Grenade Launcher Peak State ------------ > --- POWER ------------ Ion Engine > --- PROPULSION ------- Wheel Compact Wheel > --- UTILITY ---------- Large Storage Unit Structural Scanner > --- WEAPON ----------- EM Shotgun EM Shotgun > --- INVENTORY -------- Light Treads Improved Aluminum Leg Improved Aluminum Leg Weight Redist. System Grenade Launcher [Rating: 9] Favorites ----------- Power Ion Engine Engine Ion Engine Propulsion Compact Wheel Treads Light Treads Wheel Compact Wheel Utility Large Storage Unit Device Structural Scanner Storage Large Storage Unit Weapon EM Shotgun Energy Gun EM Shotgun Ballistic Gun Light Assault Rifle Launcher Grenade Launcher Build | -11 -10 -10 ------- Run | Scr Mat Min Slots Evolved . | . . . Power . | . . . Propulsion . | . . . Utility . | . . . Weapon . | . . . Parts Attached 12 | 6 5 1 Power 1 | 1 . . Engine 1 | 1 . . Core . | . . . Reactor . | . . . Propulsion 3 | 2 . 1 Treads 1 | . . 1 Leg . | . . . Wheel 2 | 2 . . Hover . | . . . Flight . | . . . Utility 3 | 1 2 . Device 1 | . 1 . Storage 2 | 1 1 . Processor . | . . . Hackware . | . . . Protection . | . . . Artifact . | . . . Weapon 5 | 2 3 . Energy Gun 3 | 1 2 . Energy Cannon . | . . . Ballistic Gun 1 | 1 . . Ballistic Cannon . | . . . Launcher 1 | . 1 . Special Weapon . | . . . Impact Weapon . | . . . Slashing Weapon . | . . . Piercing Weapon . | . . . Special Melee Weapon . | . . . Unidentified Prototypes . | . . . Parts Lost 5 | . 2 3 Power . | . . . Propulsion 3 | . . 3 Utility . | . . . Weapon 2 | . 2 . Highest Loss Streak 3 | . 2 3 To Critical Strikes . | . . . Average Slot Usage (%) 83 | . 84 66 Engine 13 | . 14 9 Wheel 27 | . 28 14 Device 6 | . 6 14 Storage 13 | . 14 9 Energy Gun 12 | . 12 . Ballistic Gun 2 | . 2 . Launcher 6 | . 5 9 Naked Turns . | . . . Heaviest Build 32 | 12 32 29 Greatest Support 26 | 26 26 26 Greatest Overweight (x) 1 | . 1 1 Average Overweight (x) . | . . . Largest Inventory Capacity 15 | 8 15 15 Average Capacity 13 | 7 14 10 Most Carried 6 | 1 6 6 Average Carried 4 | . 4 5 Final Capacity 15 | 8 15 5 Final Carried 6 | 1 6 5 Class Distribution -------------------- 100% | Mutant Dominant Class ---------------- Mutant | -10/Materials Mutant | -10/Mines Resources | -11 -10 -10 ----------- Run | Scr Mat Min Matter Collected 330 | 141 189 . Remotely . | . . . Salvage Created 244 | . 244 . Parts 18 | . 18 . Haulers Intercepted . | . . . Recyclers Shooed . | . . . Parts Field Recycled . | . . . Retrieved Matter . | . . . Parts Self-Destructed . | . . . Prevented . | . . . Kills | -11 -10 -10 ------- Run | Scr Mat Min Combat Hostiles Destroyed 6 | . 6 . Guns 5 | . 5 . AOE 1 | . 1 . Classes Destroyed 4 | . 4 . Builder 2 | . 2 . Operator 1 | . 1 . Swarmer 3 | . 3 . Grunt 3 | . 3 . Best Kill Streak 5 | . 5 . Combat Bots Only 3 | . 3 . Max Kills in Single Turn 2 | . 2 . Gunslinging . | . . . Exploded 1 | . 1 . Melee . | . . . Uniques/NPCs Destroyed . | . . . Combat | -11 -10 -10 -------- Run | Scr Mat Min Damage Taken 704 | . 295 409 Core 263 | . 96 167 Absorbed by Shields . | . . . Core Remaining (%) 100 | 100 . . Volleys Fired 15 | . 15 . Largest 2 | . 2 . Hottest 90 | . 90 . Shots Fired 28 | . 28 . Gun 26 | . 26 . Cannon . | . . . Launcher 2 | . 2 . Special . | . . . Kinetic . | . . . Thermal . | . . . Explosive 2 | . 2 . Electromagnetic 26 | . 26 . Robot Hit Streak 9 | . 9 . Robot Miss Streak 2 | . 2 . Penetration Max . | . . . Secondary Targets . | . . . Shots Hit Robots 25 | . 25 . Core Hits 16 | . 16 . Critical Kills . | . . . Critical Parts Destroyed . | . . . Critical Strikes . | . . . Melee Attacks . | . . . Impact . | . . . Slashing . | . . . Piercing . | . . . Sneak Attacks . | . . . Combat Hostiles . | . . . Follow-up Attacks . | . . . Damage Inflicted 599 | . 599 . Guns 335 | . 335 . Cannons . | . . . Explosions 264 | . 264 . Melee . | . . . Ramming . | . . . Kinetic . | . . . Thermal 153 | . 153 . Explosive 111 | . 111 . Electromagnetic 335 | . 335 . Impact . | . . . Slashing . | . . . Piercing . | . . . Highest Corruption 3 | . 3 3 Average Corruption 2 | . 2 3 Corruption Purged . | . . . Corruption Blocked . | . . . Effects 8 | . 6 2 Matter Fused 3 | . 3 . Heat Flow Errors 1 | . 1 . Energy Discharges 3 | . 1 2 Data Loss (minor) 1 | . 1 . Overload Shots . | . . . Overflow Damage 20 | . 20 . Projectiles . | . . . Explosions 20 | . 20 . Melee . | . . . Knockbacks . | . . . Impact . | . . . Kinetic . | . . . Secondary . | . . . Self-Inflicted Damage 97 | . 97 . Shots 3 | . 3 . Rammed . | . . . Targets Rammed . | . . . Kicked . | . . . Crushed . | . . . Highest Temperature 279 | . 279 . Average Temperature 100 | . 100 . Received Heat Transfer 121 | . 81 40 Siege Activations . | . . . Robots Corrupted . | . . . Combat Hostiles . | . . . Parts Fried 1 | . 1 . Impact Corruptions . | . . . Robots Melted . | . . . Combat Hostiles . | . . . Parts Melted . | . . . Heat Transferred 350 | . 350 . Parts Sabotaged . | . . . Parts Stolen . | . . . Parts Stripped . | . . . Power Chain Reactions 3 | . 3 . Missiles Intercepted . | . . . Alert | -11 -10 -10 ------- Run | Scr Mat Min Peak Influence 256 | . 256 99 Initial 99 | . . 99 Average 115 | . 131 88 Maximum Alert Level 1 | . 1 . Low Security (%) 65 | 100 58 100 Level 1 34 | . 41 . Level 2 . | . . . Level 3 . | . . . Level 4 . | . . . Level 5 . | . . . High Security . | . . . Max Security . | . . . Squads Dispatched 1 | . 1 . Investigation . | . . . Extermination . | . . . Reinforcement 1 | . 1 . Assault . | . . . Garrison . | . . . Intercept . | . . . Searches Triggered . | . . . Construction Impeded . | . . . Haulers Reinforced . | . . . Active Scanning Responses . | . . . Cargo Convoy Interrupts . | . . . Stealth | -11 -10 -10 --------- Run | Scr Mat Min Distress Signals 4 | . 4 . Communications Jammed . | . . . Distress Signals . | . . . Times Spotted 34 | . 12 22 Peak Tracking Total 20 | . 4 20 Tactical Retreats 1 | . 1 . Traps | -11 -10 -10 ------- Run | Scr Mat Min Traps Triggered 3 | . 3 . Indirectly . | . . . Trap Hack Attempts . | . . . Triggered . | . . . Disarmed . | . . . Reprogrammed . | . . . Reused . | . . . Traps Extracted . | . . . Installed . | . . . Triggered . | . . . Machines | -11 -10 -10 ---------- Run | Scr Mat Min Machines Disabled . | . . . Max in Single Turn . | . . . Machines Sabotaged . | . . . Overloaded Fab Kills . | . . . Hacking | -11 -10 -10 --------- Run | Scr Mat Min Machines Accessed 2 | . 2 . Terminals 2 | . 2 . Fabricators . | . . . Repair Stations . | . . . Recycling Units . | . . . Scanalyzers . | . . . Garrison Access . | . . . Total Hacks 3 | . 3 . Successful 2 | . 2 . Failed 1 | . 1 . Catastrophic 1 | . 1 . Database Lockouts . | . . . Manual 1 | . 1 . Terminals 3 | . 3 . Fabricators . | . . . Repair Stations . | . . . Recycling Units . | . . . Scanalyzers . | . . . Garrison Access . | . . . Terminal Hacks 2 | . 2 . Level Access Points 1 | . 1 . Branch Access Points 1 | . 1 . Fabricator Hacks . | . . . Repair Station Hacks . | . . . Recycling Unit Hacks . | . . . Scanalyzer . | . . . Garrison Access Hacks . | . . . Unauthorized Hacks . | . . . Terminals . | . . . Fabricators . | . . . Repair Stations . | . . . Recycling Units . | . . . Scanalyzers . | . . . Garrison Access . | . . . Data Cores Recovered . | . . . Used . | . . . Hacking Detections 2 | . 2 . Full Trace Events . | . . . Feedback Events . | . . . Feedback Blocked . | . . . Robot Schematics Acquired . | . . . Robots Built . | . . . Authchips . | . . . Time . | . . . Total Robot Build Rating . | . . . Part Schematics Acquired . | . . . Parts Built . | . . . Authchips . | . . . Time . | . . . Total Part Build Rating . | . . . Parts Repaired . | . . . Time . | . . . Parts Recycled . | . . . Recycled Matter . | . . . Retrieved Matter . | . . . Retrieved Components . | . . . Parts Scanalyzed . | . . . Part Schematics Acquired . | . . . Parts Damaged . | . . . Bothacking | -11 -10 -10 ------------ Run | Scr Mat Min Used RIF Installer . | . . . Robots Hacked . | . . . Non-combat . | . . . Combat . | . . . Robot Hacks Applied . | . . . Relay Couplers Released . | . . . Fabnet Peak Effective % . | . . . Robots Rewired . | . . . Allies Hacked . | . . . Hacks Repelled . | . . . Allies | -11 -10 -10 -------- Run | Scr Mat Min Total Allies . | . . . Largest Group . | . . . Highest-Rated Group . | . . . Highest-Rated Ally . | . . . Total Orders . | . . . Ally Attacks . | . . . Total Damage . | . . . Kills . | . . . Allies Corrupted . | . . . Allies Melted . | . . . Intel | -11 -10 -10 ------- Run | Scr Mat Min Robot Analysis Total . | . . . Derelict Logs Recovered . | . . . Drone Launches . | . . . Drone Recoveries . | . . . Exploration | -11 -10 -10 ------------- Run | Scr Mat Min Turns Passed 466 | 44 386 36 Spaces Moved 395 | 41 308 46 Core 36 | 6 . 30 Treads . | . . . Legs . | . . . Wheels 359 | 35 308 16 Hover . | . . . Flight . | . . . Fastest Speed 50 | 50 90 50 Average Speed 98 | 84 104 69 Slowest Speed 115 | 100 105 115 Overloaded Moves . | . . . Propulsion Burnouts . | . . . Robots Hopped . | . . . Cave-ins Triggered . | . . . Exploration Rate (%) 29 | 4 62 22 Regions Visited 2 Branch Regions 1 Pre-discovered Areas . | . . . Known Exits Taken 1 | . 1 . Unknown Exits Taken 1 | 1 . . Scrap Searched . | . . . Spaces Dug 4 | . 4 . Terrain Destroyed 20 | . 20 . Melee . | . . . Projectile . | . . . AOE 20 | . 20 . Terrain Rammed . | . . . Walls Destroyed . | . . . Machines Disabled . | . . . Actions | -11 -10 -10 --------- Run | Scr Mat Min Total 443 | 47 344 52 Wait 8 | . 8 . Move 393 | 40 307 46 Hop . | . . . Pick Up 7 | 1 6 . Fast Attach 10 | 6 4 . Attach 2 | . 1 1 Detach 2 | . . 2 Swap . | . . . Drop 6 | . 3 3 Fire 15 | . 15 . Melee . | . . . Ram . | . . . Kick . | . . . Crush . | . . . Escape Stasis . | . . . Rewire . | . . . Trap . | . . . Miscellaneous . | . . . Route ------- -11/Scrapyard -10/Materials (discovered 5 exits: *Mat x3 / *Min x2) -10/Mines History --------- Turn | Location | Event 2 | -11/Scrapyard | Discovered new exit (range 16) 45 | -11/Scrapyard | Entered Materials 85 | -10/Materials | Identified exit to Materials 310 | -10/Materials | Build established: Mutant 381 | -10/Materials | Identified exit to Mines 431 | -10/Materials | Entered Mines 432 | -10/Mines | Assembled infested the area 450 | -10/Mines | Core integrity fell below 50% 466 | -10/Mines | Core integrity fell below 20% 467 | -10/Mines | Destroyed by as-85972 with Assembled Blade Last Messages --------------- LOCATION=MINES GOAL=ESCAPE Something is scanning the area. 00432_ ALERT: Infestation in the mines, dispatching Demolisher response squad. 00432_ K-01 Serf collects debris. 00440_ System corrupted: Energy discharge (-50). 00440_ K-01 Serf collects debris. 00445_ Wheel destroyed. 00450_ Dropped Imp. Aluminum Leg. 00451_ Dropped Terrain Scanner. 00451_ K-01 Serf collects debris. 00452_ Dropped Ion Engine. 00452_ Com. Wheel destroyed. 00459_ as-03173 destroyed. 00459_ as-81591 destroyed. 00465_ System corrupted: Energy discharge (-20). 00466_ Lgt. Treads destroyed. 00466_ C-30 ARC bursts open, deploying its payload. 00466_ D-53 Grenadier unfolds itself. Map ----- +----------------------------------------------------+ | ?????????????????????????????????????????????????? | | ?????????????????????????????????????????????????? | | ?????????????????????????????????????????????????? | | ?????????????????????????????????????????????????? | | ?????????????????????????????????????????????????? | | ?????????????????????????????????????????????????? | | ?????????????????????????????????????????????????? | | ?????????????????????????????????????????????????? | | ?????????????????????????????????????????????????? | | ??????##########?????????????????????????????????? | | ??????##########???????????? ???????????????????? | | ??????## ##???????????? ?????????????????? | | ??????## ##??????????##% ???????????????? | | ??????## ##???????##### ???????????????? | | ??????## ##???????#### d ????????????????? | | ??????## ##???????## d ????????????????? | | ??????## ##????????? #????????????????? | | ??????## ##????????? ##????????????????? | | ??????## ##????????# ##????????????????? | | ??????## """ ##????????## ##????????????????? | | ??????## """ ##???????### ##????????????????? | | ??????## """ ##?????##### ###### ???????????? | | ??????## ##????##### #########??????????? | | ??####### ######???#### ##### ###??????????? | | ###### ######??#### ##### ##??????????? | | ######### @ #### ##??????????? | | ######## aa a## ##??????????? | | ######## a a a aaa ###??????????? | | ?######### ! aa ####?????????? | | ????????#######a####a a a ####????????? | | ????????#######*#### % a ###????????? | | ?????????????## ##### ##????????? | | ?????????????## ###### ##????????? | | ?????????????## ##?#### ## ## ###????????? | | ?????????????## ##??### ####### ####????????? | | ?????????????## ##???### ######## ###?????????? | | ????????????? ???########???## ##??????????? | | ??????????????" "?????######????### ##??????????? | | ??????????????" "???????????????#######??????????? | | ??????????????" "?????????????????#####??????????? | | ??????????????? ?????????????????????????????????? | | ??????????????? ?????????????????????????????????? | | ??????????????? ?????????????????????????????????? | | ??????????????? ?????????????????????????????????? | | ??????????????? ?????????????????????????????????? | | ?????????????????????????????????????????????????? | | ?????????????????????????????????????????????????? | | ?????????????????????????????????????????????????? | | ?????????????????????????????????????????????????? | | ?????????????????????????????????????????????????? | +----------------------------------------------------+ Best States ------------- Heat Dissipation 25 Energy Generation 10 Energy Capacity 250 Matter Stores 300 Matter Capacity 300 Sight Range 16 Terrain Scan Density 10 Evasion (%) 50 Recoil Reduction 1 Item Schematics ----------------- None Robot Schematics ------------------ None Fabricated ------------ Nothing Alien Tech Used ----------------- None Achievements -------------- None Challenges ------------ None Game ------ Seed TargetingHardlightBoregun Manual? 0 Play Time 00:04:52 Cumulative 354.4 hours Start 2022.09.17 @ 10:10:52 End 2022.09.17 @ 10:14:54 Sessions 1 Manual Loads 0 Difficulty Rogue Special Mode None Game No. 172 Rogue 168 Adventurer 0 Explorer 4 Win Type - Total 19 Types 5/1/2/4/1/2/3/0/1 Lore% 83 Gallery% 87 Achievement% 78 Wizard Run 0 Options --------- ASCII 0 Keyboard 0 Movement Mouse Keybinds 0 Fullscreen 1 Font 18/SmallcapsGlow Map View 76x50 Tactical HUD 1 Map Filters NONE Filters NONE Steam 1 RUN: 3b306335-89bf-4bfc-b124-28412e683c65